Workbook

Sheet стандарт
F1: до 165 ПМ | G1: =H4*165 -> 499620 | H1: 0.03
F2: від 165 до 290 ПМ | G2: =H4*290 -> 878120 | H2: 0.04
F3: більше 290 ПМ | H3: 0.05
D4: КАЛЬКУЛЯТОР | H4: 3028
D5: Обрані Споживачем умови кредитування
B7: Кредит видається на: | D7: АВТО нове
B8: Дата надання кредиту | D8: =TODAY() -> 2025-06-30
B9: Сума кредиту,грн.: | D9: 3000000 | E9: гривень
B10: Забезпечення | D10: 4300000 | E10: гривень | K10: Заповніть дані, зазначені червоним кольором
B11: Строк користування кредитом (в місяцях): | D11: 84
B12: Погашення основної суми кредиту: щомісяця
B13: Погашення процентів: щомісяця
A14: =ROUND(D9/D11,2) -> 35714.29 | B14: Номінальна процентна ставка: | D14: =VLOOKUP(D15,'Номінальна %ставка'!$A$2:$H$8,MATCH(стандарт!$D$11,'Номінальна %ставка'!$A$2:$H$2,0),0) -> 0.1099 | E14: річних | F14: =D14 -> 0.1099 | I14: =F14/12 -> 0.009158333333
B15: Авансовий внесок | D15: 0.7 | F15: =D10*D15 -> 3010000 | G15: гривень
B16: Супутні витрати позичальника:
A17: =DATE(YEAR(B40),MONTH(B40)+1,DAY(B40)) -> 2025-07-30 | B17: комісія за надання кредиту (разова): | D17: 0 | E17: від основної суми кредиту/ Всього: | G17: =D17*D9 -> 0 | I17: гривень
B18: обслуговування кредитної заборгованості: | D18: 0 | E18: на місяць від основної суми кредиту: | G18: =D18*D9 -> 0 | I18: гривень
B19: розрахунково-касове обслуговування: | G19: 0 | I19: гривень
B20: страхування НВ: | D20: 0 | E20: на рік від основної суми кредиту: | G20: =D20*D9 -> 0 | I20: гривень
B21: страхування КАСКО: | D21: 0.0699 | E21: на рік від залогової вартості: | G21: =D10*D21 -> 300570 | I21: гривень
B22: послуги нотаріуса: | G22: 0 | I22: гривень
B23: надання витягів/внесення запису(ів) до Державного реєстру обтяжень рухомого майна | E23: фіксована сума (одноразово) | G23: 0 | I23: гривень
B24: Державна реєстрація транспортного засобу | E24: фіксована сума (одноразово) | G24: 1500 | I24: гривень
B25: Надання витягів/внесення запису(ів) до Державного реєстру обтяжень рухомого майна | G25: 2000 | I25: гривень
B26: Збір на обов'язкове державне пенсійне страхування | D26: =IF(D10<G1,H1,IF(AND(D10>=G1,D10<=G2),H2,IF(D10>G2,H3))) -> 0.05 | E26: від суми кредиту (одноразово) | G26: =(D10/1.2)*D26 -> 179166.6667 | I26: гривень
B27: оцінка майна: | E27: фіксована сума (одноразово) | G27: 0 | I27: гривень
B28: інша плата за послуги кредитного посередника | G28: 0 | I28: гривень
B29: ВСЬОГО | G29: =SUM(G17:G28) -> 483236.6667 | I29: гривень
F31: =PMT(F14/12,E11,-D9) ->  | G31: =IPMT(F14/12,1,24,-D9) -> 27475
D32: Розрахунок загальної вартості споживчого кредиту та реальної процентної ставки
B34: Дата видачі кредиту/дата платежу | C34: Чиста сума кредиту/сума платежу за розрахунковий період, грн. | D34: Види платежів за кредитом | U34: Орієнтовна реальна річна процентна ставка, % | V34: Орієнтовна загальна вартість кредиту, грн
D35: сума кредиту за договором | E35: проценти за користування кредитом | F35: платежі за супутні послуги
F36: банку | K36: третіх осіб | T36: кредитного посередника(за наявності)
F37: обслуговування кредитної заборгованості | G37: РКО | H37: розрахунково-касове обслуговування | I37: комісія за надання кредиту | J37: інші послуги банку (отримання витягів/внесення запису до ДРОРМ) | K37: страхування НВ | L37: послуги нотаріусів | M37: страхування КАСКО | N37: оцінка майна | O37: надання витягів/внесення запису(ів) до Державного реєстру обтяжень рухомого майна | P37: інші послуги третіх осіб (Державна реєстрація транспортного засобу) | R37: Збір на обов'язкове державне пенсійне страхування | T37: інша плата за послуги кредитного посередника
B38: 1 | C38: 2 | D38: 3 | E38: 4 | F38: 5 | G38: 6 | I38: 7 | J38: 8 | K38: 9 | L38: 10 | M38: 11 | N38: 12 | O38: 13 | P38: 14 | R38: 15 | T38: 16 | U38: 17 | V38: 18
W39: остаток
A40: e | B40: =D8 -> 2025-06-30 | C40: =-(D40-SUM(F40:T40)) -> -2516763.333 | D40: =D9 -> 3000000 | E40: х | F40: =$G$18 -> 0 | G40: =G19 -> 0 | I40: =G17 -> 0 | J40: =G25 -> 2000 | K40: =IF(X40="страховка",$G$20,0) -> 0 | L40: =G22 -> 0 | M40: =IF(X40="страховка",$G$21,0) -> 300570 | N40: =G27 -> 0 | O40: =G23 -> 0 | P40: =G24 -> 1500 | R40: =G26 -> 179166.6667 | T40: =G28 -> 0 | U40: х | V40: х | W40: 3000000 | X40: =IF(MONTH($B$40)-MONTH(B40)=0,"страховка","нет") -> страховка
A41: e | B41: =DATE(YEAR(B40),MONTH(B40)+1,DAY(B40)) -> 2025-07-30 | C41: =SUM(D41:V41) -> 63189.29 | D41: =$A$14 -> 35714.29 | E41: =W40*$D$14/360*Y41 -> 27475 | F41: 0 | K41: =IF(X41="страховка",$G$20,0) -> 0 | M41: =IF(X41="страховка",$G$21,0) -> 0 | W41: =W40-D41 -> 2964285.71 | X41: =IF(MONTH($B$40)-MONTH(B41)=0,"страховка","нет") -> нет | Y41: =B41-B40 -> 30
A42: e | B42: =DATE(YEAR(B41),MONTH(B41)+1,DAY(B41)) -> 2025-08-30 | C42: =SUM(D42:V42) -> 63767.13718 | D42: =$A$14 -> 35714.29 | E42: =W41*$D$14/360*Y42 -> 28052.84718 | F42: 0 | K42: 0 | M42: 0 | W42: =W41-D42 -> 2928571.42 | X42: нет | Y42: =B42-B41 -> 31
A43: e | B43: 2025-09-30 | C43: 63429.15103 | D43: 35714.29 | E43: 27714.86103 | F43: 0 | K43: 0 | M43: 0 | W43: 2892857.13 | X43: нет | Y43: 31
A44: e | B44: 2025-10-30 | C44: 62208.03988 | D44: 35714.29 | E44: 26493.74988 | F44: 0 | K44: 0 | M44: 0 | W44: 2857142.84 | X44: нет | Y44: 30
A45: e | B45: 2025-11-30 | C45: 62753.17873 | D45: 35714.29 | E45: 27038.88873 | F45: 0 | K45: 0 | M45: 0 | W45: 2821428.55 | X45: нет | Y45: 31
A46: e | B46: 2025-12-30 | C46: 61553.87314 | D46: 35714.29 | E46: 25839.58314 | F46: 0 | K46: 0 | M46: 0 | W46: 2785714.26 | X46: нет | Y46: 30
A47: e | B47: 2026-01-30 | C47: 62077.20642 | D47: 35714.29 | E47: 26362.91642 | F47: 0 | K47: 0 | M47: 0 | W47: 2749999.97 | X47: нет | Y47: 31
A48: e | B48: 2026-03-02 | C48: 61739.22027 | D48: 35714.29 | E48: 26024.93027 | F48: 0 | K48: 0 | M48: 0 | W48: 2714285.68 | X48: нет | Y48: 31
A49: e | B49: 2026-04-02 | C49: 61401.23412 | D49: 35714.29 | E49: 25686.94412 | F49: 0 | K49: 0 | M49: 0 | W49: 2678571.39 | X49: нет | Y49: 31
A50: e | B50: 2026-05-02 | C50: 60245.53965 | D50: 35714.29 | E50: 24531.24965 | F50: 0 | K50: 0 | M50: 0 | W50: 2642857.1 | X50: нет | Y50: 30
A51: e | B51: 2026-06-02 | C51: 361295.2618 | D51: 35714.29 | E51: 25010.97182 | F51: 0 | K51: 0 | M51: 300570 | W51: 2607142.81 | X51: страховка | Y51: 31
A52: e | B52: 2026-07-02 | C52: 59591.3729 | D52: 35714.29 | E52: 23877.0829 | F52: 0 | K52: 0 | M52: 0 | W52: 2571428.52 | X52: нет | Y52: 30
A53: e | B53: 2026-08-02 | C53: 60049.28951 | D53: 35714.29 | E53: 24334.99951 | F53: 0 | K53: 0 | M53: 0 | W53: 2535714.23 | X53: нет | Y53: 31
A54: e | B54: 2026-09-02 | C54: 59711.30336 | D54: 35714.29 | E54: 23997.01336 | F54: 0 | K54: 0 | M54: 0 | W54: 2499999.94 | X54: нет | Y54: 31
A55: e | B55: 2026-10-02 | C55: 58610.12278 | D55: 35714.29 | E55: 22895.83278 | F55: 0 | K55: 0 | M55: 0 | W55: 2464285.65 | X55: нет | Y55: 30
A56: e | B56: 2026-11-02 | C56: 59035.33106 | D56: 35714.29 | E56: 23321.04106 | F56: 0 | K56: 0 | M56: 0 | W56: 2428571.36 | X56: нет | Y56: 31
A57: e | B57: 2026-12-02 | C57: 57955.95604 | D57: 35714.29 | E57: 22241.66604 | F57: 0 | K57: 0 | M57: 0 | W57: 2392857.07 | X57: нет | Y57: 30
A58: e | B58: 2027-01-02 | C58: 58359.35875 | D58: 35714.29 | E58: 22645.06875 | F58: 0 | K58: 0 | M58: 0 | W58: 2357142.78 | X58: нет | Y58: 31
A59: e | B59: 2027-02-02 | C59: 58021.3726 | D59: 35714.29 | E59: 22307.0826 | F59: 0 | K59: 0 | M59: 0 | W59: 2321428.49 | X59: нет | Y59: 31
A60: e | B60: 2027-03-02 | C60: 55557.34486 | D60: 35714.29 | E60: 19843.05486 | F60: 0 | K60: 0 | M60: 0 | W60: 2285714.2 | X60: нет | Y60: 28
A61: e | B61: 2027-04-02 | C61: 57345.4003 | D61: 35714.29 | E61: 21631.1103 | F61: 0 | K61: 0 | M61: 0 | W61: 2249999.91 | X61: нет | Y61: 31
A62: e | B62: 2027-05-02 | C62: 56320.53918 | D62: 35714.29 | E62: 20606.24918 | F62: 0 | K62: 0 | M62: 0 | W62: 2214285.62 | X62: нет | Y62: 30
A63: e | B63: 2027-06-02 | C63: 357239.428 | D63: 35714.29 | E63: 20955.138 | F63: 0 | K63: 0 | M63: 300570 | W63: 2178571.33 | X63: страховка | Y63: 31
A64: e | B64: 2027-07-02 | C64: 55666.37243 | D64: 35714.29 | E64: 19952.08243 | F64: 0 | K64: 0 | M64: 0 | W64: 2142857.04 | X64: нет | Y64: 30
A65: e | B65: 2027-08-02 | C65: 55993.45569 | D65: 35714.29 | E65: 20279.16569 | F65: 0 | K65: 0 | M65: 0 | W65: 2107142.75 | X65: нет | Y65: 31
A66: e | B66: 2027-09-02 | C66: 55655.46954 | D66: 35714.29 | E66: 19941.17954 | F66: 0 | K66: 0 | M66: 0 | W66: 2071428.46 | X66: нет | Y66: 31
A67: e | B67: 2027-10-02 | C67: 54685.12231 | D67: 35714.29 | E67: 18970.83231 | F67: 0 | K67: 0 | M67: 0 | W67: 2035714.17 | X67: нет | Y67: 30
A68: e | B68: 2027-11-02 | C68: 54979.49724 | D68: 35714.29 | E68: 19265.20724 | F68: 0 | K68: 0 | M68: 0 | W68: 1999999.88 | X68: нет | Y68: 31
A69: e | B69: 2027-12-02 | C69: 54030.95557 | D69: 35714.29 | E69: 18316.66557 | F69: 0 | K69: 0 | M69: 0 | W69: 1964285.59 | X69: нет | Y69: 30
A70: e | B70: 2028-01-02 | C70: 54303.52493 | D70: 35714.29 | E70: 18589.23493 | F70: 0 | K70: 0 | M70: 0 | W70: 1928571.3 | X70: нет | Y70: 31
A71: e | B71: 2028-02-02 | C71: 53965.53878 | D71: 35714.29 | E71: 18251.24878 | F71: 0 | K71: 0 | M71: 0 | W71: 1892857.01 | X71: нет | Y71: 31
A72: e | B72: 2028-03-02 | C72: 52471.85827 | D72: 35714.29 | E72: 16757.56827 | F72: 0 | K72: 0 | M72: 0 | W72: 1857142.72 | X72: нет | Y72: 29
A73: e | B73: 2028-04-02 | C73: 53289.56648 | D73: 35714.29 | E73: 17575.27648 | F73: 0 | K73: 0 | M73: 0 | W73: 1821428.43 | X73: нет | Y73: 31
A74: e | B74: 2028-05-02 | C74: 52395.5387 | D74: 35714.29 | E74: 16681.2487 | F74: 0 | K74: 0 | M74: 0 | W74: 1785714.14 | X74: нет | Y74: 30
A75: e | B75: 2028-06-02 | C75: 353183.5942 | D75: 35714.29 | E75: 16899.30418 | F75: 0 | K75: 0 | M75: 300570 | W75: 1749999.85 | X75: страховка | Y75: 31
A76: e | B76: 2028-07-02 | C76: 51741.37196 | D76: 35714.29 | E76: 16027.08196 | F76: 0 | K76: 0 | M76: 0 | W76: 1714285.56 | X76: нет | Y76: 30
A77: e | B77: 2028-08-02 | C77: 51937.62187 | D77: 35714.29 | E77: 16223.33187 | F77: 0 | K77: 0 | M77: 0 | W77: 1678571.27 | X77: нет | Y77: 31
A78: e | B78: 2028-09-02 | C78: 51599.63572 | D78: 35714.29 | E78: 15885.34572 | F78: 0 | K78: 0 | M78: 0 | W78: 1642856.98 | X78: нет | Y78: 31
A79: e | B79: 2028-10-02 | C79: 50760.12184 | D79: 35714.29 | E79: 15045.83184 | F79: 0 | K79: 0 | M79: 0 | W79: 1607142.69 | X79: нет | Y79: 30
A80: e | B80: 2028-11-02 | C80: 50923.66342 | D80: 35714.29 | E80: 15209.37342 | F80: 0 | K80: 0 | M80: 0 | W80: 1571428.4 | X80: нет | Y80: 31
A81: e | B81: 2028-12-02 | C81: 50105.9551 | D81: 35714.29 | E81: 14391.6651 | F81: 0 | K81: 0 | M81: 0 | W81: 1535714.11 | X81: нет | Y81: 30
A82: e | B82: 2029-01-02 | C82: 50247.69111 | D82: 35714.29 | E82: 14533.40111 | F82: 0 | K82: 0 | M82: 0 | W82: 1499999.82 | X82: нет | Y82: 31
A83: e | B83: 2029-02-02 | C83: 49909.70496 | D83: 35714.29 | E83: 14195.41496 | F83: 0 | K83: 0 | M83: 0 | W83: 1464285.53 | X83: нет | Y83: 31
A84: e | B84: 2029-03-02 | C84: 48230.67731 | D84: 35714.29 | E84: 12516.38731 | F84: 0 | K84: 0 | M84: 0 | W84: 1428571.24 | X84: нет | Y84: 28
A85: e | B85: 2029-04-02 | C85: 49233.73266 | D85: 35714.29 | E85: 13519.44266 | F85: 0 | K85: 0 | M85: 0 | W85: 1392856.95 | X85: нет | Y85: 31
A86: e | B86: 2029-05-02 | C86: 48470.53823 | D86: 35714.29 | E86: 12756.24823 | F86: 0 | K86: 0 | M86: 0 | W86: 1357142.66 | X86: нет | Y86: 30
A87: e | B87: 2029-06-02 | C87: 349127.7604 | D87: 35714.29 | E87: 12843.47036 | F87: 0 | K87: 0 | M87: 300570 | W87: 1321428.37 | X87: страховка | Y87: 31
A88: e | B88: 2029-07-02 | C88: 47816.37149 | D88: 35714.29 | E88: 12102.08149 | F88: 0 | K88: 0 | M88: 0 | W88: 1285714.08 | X88: нет | Y88: 30
A89: e | B89: 2029-08-02 | C89: 47881.78805 | D89: 35714.29 | E89: 12167.49805 | F89: 0 | K89: 0 | M89: 0 | W89: 1249999.79 | X89: нет | Y89: 31
A90: e | B90: 2029-09-02 | C90: 47543.8019 | D90: 35714.29 | E90: 11829.5119 | F90: 0 | K90: 0 | M90: 0 | W90: 1214285.5 | X90: нет | Y90: 31
A91: e | B91: 2029-10-02 | C91: 46835.12137 | D91: 35714.29 | E91: 11120.83137 | F91: 0 | K91: 0 | M91: 0 | W91: 1178571.21 | X91: нет | Y91: 30
A92: e | B92: 2029-11-02 | C92: 46867.8296 | D92: 35714.29 | E92: 11153.5396 | F92: 0 | K92: 0 | M92: 0 | W92: 1142856.92 | X92: нет | Y92: 31
A93: e | B93: 2029-12-02 | C93: 46180.95463 | D93: 35714.29 | E93: 10466.66463 | F93: 0 | K93: 0 | M93: 0 | W93: 1107142.63 | X93: нет | Y93: 30
A94: e | B94: 2030-01-02 | C94: 46191.85729 | D94: 35714.29 | E94: 10477.56729 | F94: 0 | K94: 0 | M94: 0 | W94: 1071428.34 | X94: нет | Y94: 31
A95: e | B95: 2030-02-02 | C95: 45853.87114 | D95: 35714.29 | E95: 10139.58114 | F95: 0 | K95: 0 | M95: 0 | W95: 1035714.05 | X95: нет | Y95: 31
A96: e | B96: 2030-03-02 | C96: 44567.34354 | D96: 35714.29 | E96: 8853.053541 | F96: 0 | K96: 0 | M96: 0 | W96: 999999.76 | X96: нет | Y96: 28
A97: e | B97: 2030-04-02 | C97: 45177.89884 | D97: 35714.29 | E97: 9463.60884 | F97: 0 | K97: 0 | M97: 0 | W97: 964285.47 | X97: нет | Y97: 31
A98: e | B98: 2030-05-02 | C98: 44545.53776 | D98: 35714.29 | E98: 8831.247763 | F98: 0 | K98: 0 | M98: 0 | W98: 928571.18 | X98: нет | Y98: 30
A99: e | B99: 2030-06-02 | C99: 345071.9265 | D99: 35714.29 | E99: 8787.636537 | F99: 0 | K99: 0 | M99: 300570 | W99: 892856.89 | X99: страховка | Y99: 31
A100: e | B100: 2030-07-02 | C100: 43891.37102 | D100: 35714.29 | E100: 8177.081018 | F100: 0 | K100: 0 | M100: 0 | W100: 857142.6 | X100: нет | Y100: 30
A101: e | B101: 2030-08-02 | C101: 43825.95423 | D101: 35714.29 | E101: 8111.664233 | F101: 0 | K101: 0 | M101: 0 | W101: 821428.31 | X101: нет | Y101: 31
A102: e | B102: 2030-09-02 | C102: 43487.96808 | D102: 35714.29 | E102: 7773.678081 | F102: 0 | K102: 0 | M102: 0 | W102: 785714.02 | X102: нет | Y102: 31
A103: e | B103: 2030-10-02 | C103: 42910.1209 | D103: 35714.29 | E103: 7195.8309 | F103: 0 | K103: 0 | M103: 0 | W103: 749999.73 | X103: нет | Y103: 30
A104: e | B104: 2030-11-02 | C104: 42811.99578 | D104: 35714.29 | E104: 7097.705778 | F104: =$G$18 -> 0 | K104: 0 | M104: 0 | W104: 714285.44 | X104: нет | Y104: 31
A105: e | B105: 2030-12-02 | C105: 42255.95415 | D105: 35714.29 | E105: 6541.664155 | F105: 0 | K105: =IF(X105="страховка",$G$20,0) -> 0 | M105: =IF(X105="страховка",$G$21,0) -> 0 | W105: 678571.15 | X105: =IF(MONTH($B$40)-MONTH(B105)=0,"страховка","нет") -> нет | Y105: 30
A106: e | B106: =DATE(YEAR(B105),MONTH(B105)+1,DAY(B105)) -> 2031-01-02 | C106: =SUM(D106:V106) -> 42136.02347 | D106: =$A$14 -> 35714.29 | E106: =W105*$D$14/360*Y106 -> 6421.733475 | F106: 0 | K106: 0 | M106: 0 | W106: =W105-D106 -> 642856.86 | X106: нет | Y106: =B106-B105 -> 31
A107: e | B107: 2031-02-02 | C107: 41798.03732 | D107: 35714.29 | E107: 6083.747323 | F107: 0 | K107: 0 | M107: 0 | W107: 607142.57 | X107: нет | Y107: 31
A108: e | B108: 2031-03-02 | C108: 40904.00977 | D108: 35714.29 | E108: 5189.719768 | F108: 0 | K108: 0 | M108: 0 | W108: 571428.28 | X108: нет | Y108: 28
A109: e | B109: 2031-04-02 | C109: 41122.06502 | D109: 35714.29 | E109: 5407.77502 | F109: 0 | K109: 0 | M109: 0 | W109: 535713.99 | X109: нет | Y109: 31
A110: e | B110: 2031-05-02 | C110: 40620.53729 | D110: 35714.29 | E110: 4906.247292 | F110: 0 | K110: 0 | M110: 0 | W110: 499999.7 | X110: нет | Y110: 30
A111: e | B111: 2031-06-02 | C111: 341016.0927 | D111: 35714.29 | E111: 4731.802716 | F111: 0 | K111: 0 | M111: 300570 | W111: 464285.41 | X111: страховка | Y111: 31
A112: e | B112: 2031-07-02 | C112: 39966.37055 | D112: 35714.29 | E112: 4252.080547 | F112: 0 | K112: 0 | M112: 0 | W112: 428571.12 | X112: нет | Y112: 30
A113: e | B113: 2031-08-02 | C113: 39770.12041 | D113: 35714.29 | E113: 4055.830413 | F113: 0 | K113: 0 | M113: 0 | W113: 392856.83 | X113: нет | Y113: 31
A114: e | B114: 2031-09-02 | C114: 39432.13426 | D114: 35714.29 | E114: 3717.844261 | F114: 0 | K114: 0 | M114: 0 | W114: 357142.54 | X114: нет | Y114: 31
A115: e | B115: 2031-10-02 | C115: 38985.12043 | D115: 35714.29 | E115: 3270.830429 | F115: 0 | K115: 0 | M115: 0 | W115: 321428.25 | X115: нет | Y115: 30
A116: e | B116: 2031-11-02 | C116: 38756.16196 | D116: 35714.29 | E116: 3041.871958 | F116: 0 | K116: 0 | M116: 0 | W116: 285713.96 | X116: нет | Y116: 31
A117: e | B117: 2031-12-02 | C117: 38330.95368 | D117: 35714.29 | E117: 2616.663684 | F117: 0 | K117: 0 | M117: 0 | W117: 249999.67 | X117: нет | Y117: 30
A118: e | B118: 2032-01-02 | C118: 38080.18965 | D118: 35714.29 | E118: 2365.899655 | F118: 0 | K118: 0 | M118: 0 | W118: 214285.38 | X118: нет | Y118: 31
A119: e | B119: 2032-02-02 | C119: 37742.2035 | D119: 35714.29 | E119: 2027.913503 | F119: 0 | K119: 0 | M119: 0 | W119: 178571.09 | X119: нет | Y119: 31
A120: e | B120: 2032-03-02 | C120: 37295.18978 | D120: 35714.29 | E120: 1580.89978 | F120: 0 | K120: 0 | M120: 0 | W120: 142856.8 | X120: нет | Y120: 29
A121: e | B121: 2032-04-02 | C121: 37066.2312 | D121: 35714.29 | E121: 1351.9412 | F121: 0 | K121: 0 | M121: 0 | W121: 107142.51 | X121: нет | Y121: 31
A122: e | B122: 2032-05-02 | C122: 36695.53682 | D122: 35714.29 | E122: 981.2468207 | F122: 0 | K122: 0 | M122: 0 | W122: 71428.22 | X122: нет | Y122: 30
A123: e | B123: 2032-06-02 | C123: 336960.2589 | D123: 35714.29 | E123: 675.9688964 | F123: 0 | K123: 0 | M123: 300570 | W123: 35713.93 | X123: страховка | Y123: 31
A124: e | B124: 2032-07-02 | C124: 36041.37008 | D124: 35714.29 | E124: 327.0800756 | F124: 0 | W124: -0.3600000025 | Y124: 30
B125: Усього | C125: 6290801.193 | D125: 3000000.36 | E125: 1186810.833 | F125: 0 | G125: 0 | H125: 0 | I125: 0 | J125: 2000 | K125: 0 | L125: 0 | M125: 2404560 | N125: 0 | O125: 0 | P125: 1500 | Q125: 0 | R125: 179166.6667 | S125: 0 | T125: 0 | U125: =XIRR(C40:C124,B40:B124) -> 0.3811541855 | V125: 3774037.86
B127: Загальні витрати за кредитом( проценти за користування кредитом, комісії та інші обовязкові платежі за супровідні послуги кредитодавця, кредитного посередника (за наявності) та третіх осіб, повязані з отриманням, обслуговуванням та поверненням кредиту), грн з них: | J127: =V125 -> 3774037.86
B128: - Платежі за супутні послуги кредитодавця, повязані з отриманням, обслуговуванням та поверненням кредиту), грн | J128: =E125+F125+G125+I125+J125 -> 1188810.833
B129: - Платежі за супутні послуги третіх осіб, повязані з отриманням, обслуговуванням та поверненням кредиту), грн | J129: =K125+L125+M125+N125+O125+P125+R125+T125 -> 2585226.667
B130: Орієнтовна загальна вартість кредиту для споживача за весь строк користування кредитом ( у т.ч. тіло кредиту, відсотки, комісії та інші платежі), грн. | J130: =J127+D9 -> 6774037.86
B131: Орієнтовна реальна річна процентна ставка, % річних | J131: =U125 -> 0.3811541855
B132: Застереження: Розрахунок загальної вартості Кредиту і реальної процентної ставки носить інформативний характер для Позичальника і визначено станом на дату укладання Кредитного договору. При здійсненні розрахунку загальної вартості Кредиту і реальної процентної ставки Кредитор враховував вартість супутніх послуг третіх осіб, послуги кредитного посередник ( за наявності). В розрахунок загальної вартості Кредиту і реальної процентної ставки не включались умовні платежі Позичальника по Договору (пені, штрафи, які встановлюються згідно з Договором).
B133: Наведені обчислення реальної річної процентної ставки та орієнтовної загальної вартості кредиту для споживача є репрезентативними та базуються на обраних споживачем умовах кредитування, викладених вище, і на припущенні, що договір про споживчий кредит залишатиметься дійсним протягом погодженого строку, а кредитодавець і споживач виконають свої обов’язки на умовах та у строки, визначені в договорі.Реальна річна процентна ставка обчислена на основі припущення, що процентна ставка та інші платежі за послуги кредитодавця залишатимуться незмінними та застосовуватимуться протягом строку дії договору про споживчий кредит. Застереження: використання інших способів надання кредиту та/або зміна інших вищезазначених умов кредитування можуть мати наслідком застосування іншої реальної річної процентної ставки та орієнтовної загальної вартості кредиту для споживача. Орієнтовна реальна річна процентна ставка обчислена з використанням фінансової функції ЧИСТВНДОХ програмного продукту Microsoft Excel.
B134: Позичальник не сплачує Кредитору комісійних винагород за розрахунково-касове обслуговування, що пов‘язані з погашенням Кредиту та процентів за ним Позичальником у готівковій чи безготівковій формі через установи Кредитора. У випадку погашення Позичальником Кредиту та процентів за ним не через установи Кредитора Позичальник буде сплачувати послуги інших банків згідно з тарифами, які діятимуть в таких банках на момент здійснення розрахунково-касового обслуговування Позичальника.

Sheet ануітет
F1: до 165 ПМ | G1: =H4*165 -> 499620 | H1: 0.03
F2: від 165 до 290 ПМ | G2: =H4*290 -> 878120 | H2: 0.04
F3: більше 290 ПМ | H3: 0.05
D4: КАЛЬКУЛЯТОР | H4: 3028
D5: Обрані Споживачем умови кредитування
B7: Кредит видається на:
B8: Дата надання кредиту | D8: =TODAY() -> 2025-06-30
B9: Сума кредиту,грн.: | D9: 3000000 | E9: гривень | K9: Заповніть дані, зазначені червоним кольором
B10: Забезпечення | D10: 3750000 | E10: гривень | F10: =D10/1.2 -> 3125000
B11: Строк користування кредитом (в місяцях): | D11: 84
B12: Погашення основної суми кредиту: щомісяця
B13: Погашення процентів: щомісяця
A14: =ROUND(D9/D11,2) -> 35714.29 | B14: Номінальна процентна ставка: | D14: =VLOOKUP(D15,'Номінальна %ставка'!$A$2:$H$8,MATCH(стандарт!$D$11,'Номінальна %ставка'!$A$2:$H$2,0),0) -> 0.1699 | E14: річних | F14: =D14 -> 0.1699 | I14: =F14/12 -> 0.01415833333
B15: Авансовий внесок | D15: 0.2 | F15: =D10*D15 -> 750000 | G15: гривень
B16: Супутні витрати позичальника:
A17: =DATE(YEAR(B40),MONTH(B40)+1,DAY(B40)) -> 2025-07-30 | B17: комісія за надання кредиту (разова): | D17: 0 | E17: від основної суми кредиту. Всього: | G17: =D17*D9 -> 0 | I17: гривень
B18: обслуговування кредитної заборгованості: | D18: 0 | E18: на місяць від основної суми кредиту: | G18: =D18*D9 -> 0 | I18: гривень
B19: розрахунково-касове обслуговування: | G19: 0 | I19: гривень
B20: страхування НВ: | D20: 0 | E20: на рік від основної суми кредиту: | G20: =D20*D9 -> 0 | I20: гривень
B21: страхування КАСКО: | D21: 0.0699 | E21: на рік від залогової вартості: | G21: =D10*D21 -> 262125 | I21: гривень
B22: послуги нотаріуса: | G22: 0 | I22: гривень
B23: надання витягів/внесення запису(ів) до Державного реєстру обтяжень рухомого майна | E23: фіксована сума (одноразово) | G23: 0 | I23: гривень
B24: Державна реєстрація транспортного засобу | G24: 1500 | I24: гривень
B25: Надання витягів/внесення запису(ів) до Державного реєстру обтяжень рухомого майна | G25: 2000 | I25: гривень
B26: Збір на обов'язкове державне пенсійне страхування | D26: =IF(D10<G1,H1,IF(AND(D10>=G1,D10<=G2),H2,IF(D10>G2,H3))) -> 0.05 | E26: від суми кредиту (одноразово) | G26: =(D10/1.2)*D26 -> 156250 | I26: гривень
B27: оцінка майна: | E27: фіксована сума (одноразово) | G27: 0 | I27: гривень
B28: інша плата за послуги кредитного посередника | G28: 0 | I28: гривень
B29: ВСЬОГО | G29: =SUM(G17:G28) -> 421875 | I29: гривень
F31: =PMT(F14/12,E11,-D9) ->  | G31: =IPMT(F14/12,1,24,-D9) -> 42475
D32: Розрахунок загальної вартості споживчого кредиту та реальної процентної ставки
B34: Дата видачі кредиту/дата платежу | C34: Чиста сума кредиту/сума платежу за розрахунковий період, грн. | D34: Види платежів за кредитом | U34: Реальна процентна ставка, % | V34: Абсолютне значення подорожчання кредиту, грн.
D35: сума кредиту за договором | E35: проценти за користування кредитом | F35: платежі за супутні послуги
F36: банку | K36: третіх осіб | T36: кредитного посередника(за наявності)
F37: обслуговування кредитної заборгованості | G37: РКО | I37: комісія за надання кредиту | J37: інші послуги банку (отримання витягів/внесення запису до ДРОРМ) | K37: страхування НВ | L37: послуги нотаріусів | M37: страхування КАСКО: | N37: оцінка майна | O37: надання витягів/внесення запису(ів) до Державного реєстру обтяжень рухомого майна | P37: інші послуги третіх осіб (Державна реєстрація транспортного засобу) | R37: Збір на обов'язкове державне пенсійне страхування | T37: інша плата за послуги кредитного посередника
B38: 1 | C38: 2 | D38: 3 | E38: 4 | F38: 5 | G38: 6 | I38: 7 | J38: 8 | K38: 9 | L38: 10 | M38: 11 | N38: 12 | O38: 13 | P38: 14 | R38: 15 | T38: 16 | U38: 17 | V38: 18
W39: остаток | Z39: ан платеж
A40: e | B40: =D8 -> 2025-06-30 | C40: =-(D40-SUM(F40:T40)) -> -2578125 | D40: =D9 -> 3000000 | E40: х | F40: =$G$18 -> 0 | G40: =G19 -> 0 | I40: =G17 -> 0 | J40: =G25 -> 2000 | K40: =IF(X40="страховка",$G$20,0) -> 0 | L40: =G22 -> 0 | M40: =IF(X40="страховка",$G$21,0) -> 262125 | N40: =G27 -> 0 | O40: =G23 -> 0 | P40: =G24 -> 1500 | R40: =G26 -> 156250 | T40: =G28 -> 0 | U40: х | V40: х | W40: 3000000 | X40: =IF(MONTH($B$40)-MONTH(B40)=0,"страховка","нет") -> страховка | AB40: =(D9*D14/12)/(1-(1/(1+D14/12)^D11)) -> 61290.07853
A41: e | B41: =DATE(YEAR(B40),MONTH(B40)+1,DAY(B40)) -> 2025-07-30 | C41: =SUM(D41:V41) -> 61290.07853 | D41: =Z41-E41 -> 18815.07853 | E41: =W40*$D$14/12 -> 42475 | F41: =$G$18 -> 0 | K41: =IF(X41="страховка",$G$20,0) -> 0 | M41: =IF(X41="страховка",$G$21,0) -> 0 | W41: =W40-D41 -> 2981184.921 | X41: =IF(MONTH($B$40)-MONTH(B41)=0,"страховка","нет") -> нет | Y41: =B41-B40 -> 30 | Z41: =PMT($D$14/12,$D$11,-$D$9) -> 61290.07853
A42: e | B42: =DATE(YEAR(B41),MONTH(B41)+1,DAY(B41)) -> 2025-08-30 | C42: =SUM(D42:V42) -> 61290.07853 | D42: =Z42-E42 -> 19081.46868 | E42: =W41*$D$14/12 -> 42208.60985 | F42: 0 | K42: 0 | M42: 0 | W42: =W41-D42 -> 2962103.453 | X42: нет | Y42: =B42-B41 -> 31 | Z42: =PMT($D$14/12,$D$11,-$D$9) -> 61290.07853
A43: e | B43: 2025-09-30 | C43: 61290.07853 | D43: 19351.63047 | E43: 41938.44805 | F43: 0 | K43: 0 | M43: 0 | W43: 2942751.822 | X43: нет | Y43: 31 | Z43: 61290.07853
A44: e | B44: 2025-10-30 | C44: 61290.07853 | D44: 19625.61731 | E44: 41664.46122 | F44: 0 | K44: 0 | M44: 0 | W44: 2923126.205 | X44: нет | Y44: 30 | Z44: 61290.07853
A45: e | B45: 2025-11-30 | C45: 61290.07853 | D45: 19903.48334 | E45: 41386.59519 | F45: 0 | K45: 0 | M45: 0 | W45: 2903222.722 | X45: нет | Y45: 31 | Z45: 61290.07853
A46: e | B46: 2025-12-30 | C46: 61290.07853 | D46: 20185.28349 | E46: 41104.79503 | F46: 0 | K46: 0 | M46: 0 | W46: 2883037.438 | X46: нет | Y46: 30 | Z46: 61290.07853
A47: e | B47: 2026-01-30 | C47: 61290.07853 | D47: 20471.07346 | E47: 40819.00506 | F47: 0 | K47: 0 | M47: 0 | W47: 2862566.365 | X47: нет | Y47: 31 | Z47: 61290.07853
A48: e | B48: 2026-03-02 | C48: 61290.07853 | D48: 20760.90975 | E48: 40529.16878 | F48: 0 | K48: 0 | M48: 0 | W48: 2841805.455 | X48: нет | Y48: 31 | Z48: 61290.07853
A49: e | B49: 2026-04-02 | C49: 61290.07853 | D49: 21054.84963 | E49: 40235.2289 | F49: 0 | K49: 0 | M49: 0 | W49: 2820750.605 | X49: нет | Y49: 31 | Z49: 61290.07853
A50: e | B50: 2026-05-02 | C50: 61290.07853 | D50: 21352.95121 | E50: 39937.12732 | F50: 0 | K50: 0 | M50: 0 | W50: 2799397.654 | X50: нет | Y50: 30 | Z50: 61290.07853
A51: e | B51: 2026-06-02 | C51: 323415.0785 | D51: 21655.27341 | E51: 39634.80512 | F51: 0 | K51: 0 | M51: 262125 | W51: 2777742.381 | X51: страховка | Y51: 31 | Z51: 61290.07853
A52: e | B52: 2026-07-02 | C52: 61290.07853 | D52: 21961.87599 | E52: 39328.20254 | F52: 0 | K52: 0 | M52: 0 | W52: 2755780.505 | X52: нет | Y52: 30 | Z52: 61290.07853
A53: e | B53: 2026-08-02 | C53: 61290.07853 | D53: 22272.81955 | E53: 39017.25898 | F53: 0 | K53: 0 | M53: 0 | W53: 2733507.685 | X53: нет | Y53: 31 | Z53: 61290.07853
A54: e | B54: 2026-09-02 | C54: 61290.07853 | D54: 22588.16555 | E54: 38701.91298 | F54: 0 | K54: 0 | M54: 0 | W54: 2710919.52 | X54: нет | Y54: 31 | Z54: 61290.07853
A55: e | B55: 2026-10-02 | C55: 61290.07853 | D55: 22907.97633 | E55: 38382.1022 | F55: 0 | K55: 0 | M55: 0 | W55: 2688011.543 | X55: нет | Y55: 30 | Z55: 61290.07853
A56: e | B56: 2026-11-02 | C56: 61290.07853 | D56: 23232.31509 | E56: 38057.76343 | F56: 0 | K56: 0 | M56: 0 | W56: 2664779.228 | X56: нет | Y56: 31 | Z56: 61290.07853
A57: e | B57: 2026-12-02 | C57: 61290.07853 | D57: 23561.24595 | E57: 37728.83257 | F57: 0 | K57: 0 | M57: 0 | W57: 2641217.982 | X57: нет | Y57: 30 | Z57: 61290.07853
A58: e | B58: 2027-01-02 | C58: 61290.07853 | D58: 23894.83393 | E58: 37395.2446 | F58: 0 | K58: 0 | M58: 0 | W58: 2617323.148 | X58: нет | Y58: 31 | Z58: 61290.07853
A59: e | B59: 2027-02-02 | C59: 61290.07853 | D59: 24233.14495 | E59: 37056.93358 | F59: 0 | K59: 0 | M59: 0 | W59: 2593090.003 | X59: нет | Y59: 31 | Z59: 61290.07853
A60: e | B60: 2027-03-02 | C60: 61290.07853 | D60: 24576.2459 | E60: 36713.83263 | F60: 0 | K60: 0 | M60: 0 | W60: 2568513.757 | X60: нет | Y60: 28 | Z60: 61290.07853
A61: e | B61: 2027-04-02 | C61: 61290.07853 | D61: 24924.20458 | E61: 36365.87395 | F61: 0 | K61: 0 | M61: 0 | W61: 2543589.553 | X61: нет | Y61: 31 | Z61: 61290.07853
A62: e | B62: 2027-05-02 | C62: 61290.07853 | D62: 25277.08977 | E62: 36012.98875 | F62: 0 | K62: 0 | M62: 0 | W62: 2518312.463 | X62: нет | Y62: 30 | Z62: 61290.07853
A63: e | B63: 2027-06-02 | C63: 323415.0785 | D63: 25634.97124 | E63: 35655.10729 | F63: 0 | K63: 0 | M63: 262125 | W63: 2492677.492 | X63: страховка | Y63: 31 | Z63: 61290.07853
A64: e | B64: 2027-07-02 | C64: 61290.07853 | D64: 25997.9197 | E64: 35292.15882 | F64: 0 | K64: 0 | M64: 0 | W64: 2466679.572 | X64: нет | Y64: 30 | Z64: 61290.07853
A65: e | B65: 2027-08-02 | C65: 61290.07853 | D65: 26366.00692 | E65: 34924.07161 | F65: 0 | K65: 0 | M65: 0 | W65: 2440313.565 | X65: нет | Y65: 31 | Z65: 61290.07853
A66: e | B66: 2027-09-02 | C66: 61290.07853 | D66: 26739.30563 | E66: 34550.7729 | F66: 0 | K66: 0 | M66: 0 | W66: 2413574.26 | X66: нет | Y66: 31 | Z66: 61290.07853
A67: e | B67: 2027-10-02 | C67: 61290.07853 | D67: 27117.88963 | E67: 34172.18889 | F67: 0 | K67: 0 | M67: 0 | W67: 2386456.37 | X67: нет | Y67: 30 | Z67: 61290.07853
A68: e | B68: 2027-11-02 | C68: 61290.07853 | D68: 27501.83375 | E68: 33788.24477 | F68: 0 | K68: 0 | M68: 0 | W68: 2358954.536 | X68: нет | Y68: 31 | Z68: 61290.07853
A69: e | B69: 2027-12-02 | C69: 61290.07853 | D69: 27891.21388 | E69: 33398.86464 | F69: 0 | K69: 0 | M69: 0 | W69: 2331063.322 | X69: нет | Y69: 30 | Z69: 61290.07853
A70: e | B70: 2028-01-02 | C70: 61290.07853 | D70: 28286.10699 | E70: 33003.97154 | F70: 0 | K70: 0 | M70: 0 | W70: 2302777.215 | X70: нет | Y70: 31 | Z70: 61290.07853
A71: e | B71: 2028-02-02 | C71: 61290.07853 | D71: 28686.59112 | E71: 32603.48741 | F71: 0 | K71: 0 | M71: 0 | W71: 2274090.624 | X71: нет | Y71: 31 | Z71: 61290.07853
A72: e | B72: 2028-03-02 | C72: 61290.07853 | D72: 29092.74544 | E72: 32197.33309 | F72: 0 | K72: 0 | M72: 0 | W72: 2244997.879 | X72: нет | Y72: 29 | Z72: 61290.07853
A73: e | B73: 2028-04-02 | C73: 61290.07853 | D73: 29504.65023 | E73: 31785.4283 | F73: 0 | K73: 0 | M73: 0 | W73: 2215493.229 | X73: нет | Y73: 31 | Z73: 61290.07853
A74: e | B74: 2028-05-02 | C74: 61290.07853 | D74: 29922.3869 | E74: 31367.69163 | F74: 0 | K74: 0 | M74: 0 | W74: 2185570.842 | X74: нет | Y74: 30 | Z74: 61290.07853
A75: e | B75: 2028-06-02 | C75: 323415.0785 | D75: 30346.03803 | E75: 30944.0405 | F75: 0 | K75: 0 | M75: 262125 | W75: 2155224.804 | X75: страховка | Y75: 31 | Z75: 61290.07853
A76: e | B76: 2028-07-02 | C76: 61290.07853 | D76: 30775.68735 | E76: 30514.39118 | F76: 0 | K76: 0 | M76: 0 | W76: 2124449.116 | X76: нет | Y76: 30 | Z76: 61290.07853
A77: e | B77: 2028-08-02 | C77: 61290.07853 | D77: 31211.41979 | E77: 30078.65874 | F77: 0 | K77: 0 | M77: 0 | W77: 2093237.697 | X77: нет | Y77: 31 | Z77: 61290.07853
A78: e | B78: 2028-09-02 | C78: 61290.07853 | D78: 31653.32147 | E78: 29636.75705 | F78: 0 | K78: 0 | M78: 0 | W78: 2061584.375 | X78: нет | Y78: 31 | Z78: 61290.07853
A79: e | B79: 2028-10-02 | C79: 61290.07853 | D79: 32101.47975 | E79: 29188.59878 | F79: 0 | K79: 0 | M79: 0 | W79: 2029482.895 | X79: нет | Y79: 30 | Z79: 61290.07853
A80: e | B80: 2028-11-02 | C80: 61290.07853 | D80: 32555.9832 | E80: 28734.09533 | F80: 0 | K80: 0 | M80: 0 | W80: 1996926.912 | X80: нет | Y80: 31 | Z80: 61290.07853
A81: e | B81: 2028-12-02 | C81: 61290.07853 | D81: 33016.92166 | E81: 28273.15686 | F81: 0 | K81: 0 | M81: 0 | W81: 1963909.99 | X81: нет | Y81: 30 | Z81: 61290.07853
A82: e | B82: 2029-01-02 | C82: 61290.07853 | D82: 33484.38625 | E82: 27805.69228 | F82: 0 | K82: 0 | M82: 0 | W82: 1930425.604 | X82: нет | Y82: 31 | Z82: 61290.07853
A83: e | B83: 2029-02-02 | C83: 61290.07853 | D83: 33958.46935 | E83: 27331.60918 | F83: 0 | K83: 0 | M83: 0 | W83: 1896467.135 | X83: нет | Y83: 31 | Z83: 61290.07853
A84: e | B84: 2029-03-02 | C84: 61290.07853 | D84: 34439.26468 | E84: 26850.81385 | F84: 0 | K84: 0 | M84: 0 | W84: 1862027.87 | X84: нет | Y84: 28 | Z84: 61290.07853
A85: e | B85: 2029-04-02 | C85: 61290.07853 | D85: 34926.86726 | E85: 26363.21126 | F85: 0 | K85: 0 | M85: 0 | W85: 1827101.003 | X85: нет | Y85: 31 | Z85: 61290.07853
A86: e | B86: 2029-05-02 | C86: 61290.07853 | D86: 35421.37349 | E86: 25868.70503 | F86: 0 | K86: 0 | M86: 0 | W86: 1791679.629 | X86: нет | Y86: 30 | Z86: 61290.07853
A87: e | B87: 2029-06-02 | C87: 323415.0785 | D87: 35922.88111 | E87: 25367.19742 | F87: 0 | K87: 0 | M87: 262125 | W87: 1755756.748 | X87: страховка | Y87: 31 | Z87: 61290.07853
A88: e | B88: 2029-07-02 | C88: 61290.07853 | D88: 36431.48923 | E88: 24858.5893 | F88: 0 | K88: 0 | M88: 0 | W88: 1719325.259 | X88: нет | Y88: 30 | Z88: 61290.07853
A89: e | B89: 2029-08-02 | C89: 61290.07853 | D89: 36947.2984 | E89: 24342.78013 | F89: 0 | K89: 0 | M89: 0 | W89: 1682377.961 | X89: нет | Y89: 31 | Z89: 61290.07853
A90: e | B90: 2029-09-02 | C90: 61290.07853 | D90: 37470.41057 | E90: 23819.66796 | F90: 0 | K90: 0 | M90: 0 | W90: 1644907.55 | X90: нет | Y90: 31 | Z90: 61290.07853
A91: e | B91: 2029-10-02 | C91: 61290.07853 | D91: 38000.92913 | E91: 23289.1494 | F91: 0 | K91: 0 | M91: 0 | W91: 1606906.621 | X91: нет | Y91: 30 | Z91: 61290.07853
A92: e | B92: 2029-11-02 | C92: 61290.07853 | D92: 38538.95895 | E92: 22751.11958 | F92: 0 | K92: 0 | M92: 0 | W92: 1568367.662 | X92: нет | Y92: 31 | Z92: 61290.07853
A93: e | B93: 2029-12-02 | C93: 61290.07853 | D93: 39084.60638 | E93: 22205.47215 | F93: 0 | K93: 0 | M93: 0 | W93: 1529283.056 | X93: нет | Y93: 30 | Z93: 61290.07853
A94: e | B94: 2030-01-02 | C94: 61290.07853 | D94: 39637.97926 | E94: 21652.09926 | F94: 0 | K94: 0 | M94: 0 | W94: 1489645.076 | X94: нет | Y94: 31 | Z94: 61290.07853
A95: e | B95: 2030-02-02 | C95: 61290.07853 | D95: 40199.18699 | E95: 21090.89154 | F95: 0 | K95: 0 | M95: 0 | W95: 1449445.889 | X95: нет | Y95: 31 | Z95: 61290.07853
A96: e | B96: 2030-03-02 | C96: 61290.07853 | D96: 40768.34048 | E96: 20521.73805 | F96: 0 | K96: 0 | M96: 0 | W96: 1408677.549 | X96: нет | Y96: 28 | Z96: 61290.07853
A97: e | B97: 2030-04-02 | C97: 61290.07853 | D97: 41345.55223 | E97: 19944.5263 | F97: 0 | K97: 0 | M97: 0 | W97: 1367331.997 | X97: нет | Y97: 31 | Z97: 61290.07853
A98: e | B98: 2030-05-02 | C98: 61290.07853 | D98: 41930.93634 | E98: 19359.14219 | F98: 0 | K98: 0 | M98: 0 | W98: 1325401.06 | X98: нет | Y98: 30 | Z98: 61290.07853
A99: e | B99: 2030-06-02 | C99: 323415.0785 | D99: 42524.60851 | E99: 18765.47001 | F99: 0 | K99: 0 | M99: 262125 | W99: 1282876.452 | X99: страховка | Y99: 31 | Z99: 61290.07853
A100: e | B100: 2030-07-02 | C100: 61290.07853 | D100: 43126.6861 | E100: 18163.39243 | F100: 0 | K100: 0 | M100: 0 | W100: 1239749.766 | X100: нет | Y100: 30 | Z100: 61290.07853
A101: e | B101: 2030-08-02 | C101: 61290.07853 | D101: 43737.28809 | E101: 17552.79043 | F101: 0 | K101: 0 | M101: 0 | W101: 1196012.478 | X101: нет | Y101: 31 | Z101: 61290.07853
A102: e | B102: 2030-09-02 | C102: 61290.07853 | D102: 44356.5352 | E102: 16933.54333 | F102: 0 | K102: 0 | M102: 0 | W102: 1151655.942 | X102: нет | Y102: 31 | Z102: 61290.07853
A103: e | B103: 2030-10-02 | C103: 61290.07853 | D103: 44984.54981 | E103: 16305.52872 | F103: 0 | K103: 0 | M103: 0 | W103: 1106671.393 | X103: нет | Y103: 30 | Z103: 61290.07853
A104: e | B104: 2030-11-02 | C104: 61290.07853 | D104: 45621.45606 | E104: 15668.62247 | F104: 0 | K104: 0 | M104: 0 | W104: 1061049.937 | X104: нет | Y104: 31 | Z104: 61290.07853
A105: e | B105: 2030-12-02 | C105: 61290.07853 | D105: 46267.37984 | E105: 15022.69869 | F105: =$G$18 -> 0 | K105: =IF(X105="страховка",$G$20,0) -> 0 | M105: =IF(X105="страховка",$G$21,0) -> 0 | W105: 1014782.557 | X105: =IF(MONTH($B$40)-MONTH(B105)=0,"страховка","нет") -> нет | Y105: 30 | Z105: 61290.07853
A106: e | B106: =DATE(YEAR(B105),MONTH(B105)+1,DAY(B105)) -> 2031-01-02 | C106: =SUM(D106:V106) -> 61290.07853 | D106: =Z106-E106 -> 46922.44883 | E106: =W105*$D$14/12 -> 14367.6297 | F106: 0 | K106: 0 | M106: 0 | W106: =W105-D106 -> 967860.1079 | X106: нет | Y106: =B106-B105 -> 31 | Z106: =PMT($D$14/12,$D$11,-$D$9) -> 61290.07853
A107: e | B107: 2031-02-02 | C107: 61290.07853 | D107: 47586.7925 | E107: 13703.28603 | F107: 0 | K107: 0 | M107: 0 | W107: 920273.3154 | X107: нет | Y107: 31 | Z107: 61290.07853
A108: e | B108: 2031-03-02 | C108: 61290.07853 | D108: 48260.54217 | E108: 13029.53636 | F108: 0 | K108: 0 | M108: 0 | W108: 872012.7733 | X108: нет | Y108: 28 | Z108: 61290.07853
A109: e | B109: 2031-04-02 | C109: 61290.07853 | D109: 48943.83101 | E109: 12346.24752 | F109: 0 | K109: 0 | M109: 0 | W109: 823068.9423 | X109: нет | Y109: 31 | Z109: 61290.07853
A110: e | B110: 2031-05-02 | C110: 61290.07853 | D110: 49636.79409 | E110: 11653.28444 | F110: 0 | K110: 0 | M110: 0 | W110: 773432.1482 | X110: нет | Y110: 30 | Z110: 61290.07853
A111: e | B111: 2031-06-02 | C111: 323415.0785 | D111: 50339.56836 | E111: 10950.51016 | F111: 0 | K111: 0 | M111: 262125 | W111: 723092.5798 | X111: страховка | Y111: 31 | Z111: 61290.07853
A112: e | B112: 2031-07-02 | C112: 61290.07853 | D112: 51052.29275 | E112: 10237.78578 | F112: 0 | K112: 0 | M112: 0 | W112: 672040.2871 | X112: нет | Y112: 30 | Z112: 61290.07853
A113: e | B113: 2031-08-02 | C113: 61290.07853 | D113: 51775.10813 | E113: 9514.970398 | F113: 0 | K113: 0 | M113: 0 | W113: 620265.1789 | X113: нет | Y113: 31 | Z113: 61290.07853
A114: e | B114: 2031-09-02 | C114: 61290.07853 | D114: 52508.15737 | E114: 8781.921158 | F114: 0 | K114: 0 | M114: 0 | W114: 567757.0216 | X114: нет | Y114: 31 | Z114: 61290.07853
A115: e | B115: 2031-10-02 | C115: 61290.07853 | D115: 53251.58536 | E115: 8038.493164 | F115: 0 | K115: 0 | M115: 0 | W115: 514505.4362 | X115: нет | Y115: 30 | Z115: 61290.07853
A116: e | B116: 2031-11-02 | C116: 61290.07853 | D116: 54005.53906 | E116: 7284.539468 | F116: 0 | K116: 0 | M116: 0 | W116: 460499.8971 | X116: нет | Y116: 31 | Z116: 61290.07853
A117: e | B117: 2031-12-02 | C117: 61290.07853 | D117: 54770.16748 | E117: 6519.911044 | F117: 0 | K117: 0 | M117: 0 | W117: 405729.7297 | X117: нет | Y117: 30 | Z117: 61290.07853
A118: e | B118: 2032-01-02 | C118: 61290.07853 | D118: 55545.62177 | E118: 5744.456756 | F118: 0 | K118: 0 | M118: 0 | W118: 350184.1079 | X118: нет | Y118: 31 | Z118: 61290.07853
A119: e | B119: 2032-02-02 | C119: 61290.07853 | D119: 56332.0552 | E119: 4958.023328 | F119: 0 | K119: 0 | M119: 0 | W119: 293852.0527 | X119: нет | Y119: 31 | Z119: 61290.07853
A120: e | B120: 2032-03-02 | C120: 61290.07853 | D120: 57129.62321 | E120: 4160.455313 | F120: 0 | K120: 0 | M120: 0 | W120: 236722.4295 | X120: нет | Y120: 29 | Z120: 61290.07853
A121: e | B121: 2032-04-02 | C121: 61290.07853 | D121: 57938.48346 | E121: 3351.595064 | F121: 0 | K121: 0 | M121: 0 | W121: 178783.946 | X121: нет | Y121: 31 | Z121: 61290.07853
A122: e | B122: 2032-05-02 | C122: 61290.07853 | D122: 58758.79582 | E122: 2531.282702 | F122: 0 | K122: 0 | M122: 0 | W122: 120025.1502 | X122: нет | Y122: 30 | Z122: 61290.07853
A123: e | B123: 2032-06-02 | C123: 323415.0785 | D123: 59590.72244 | E123: 1699.356085 | F123: 0 | K123: 0 | M123: 262125 | W123: 60434.42775 | X123: страховка | Y123: 31 | Z123: 61290.07853
A124: e | B124: 2032-07-02 | C124: 61290.07853 | D124: 60434.42775 | E124: 855.6507729 | F124: 0 | W124: 0 | Y124: 30 | Z124: 61290.07853
B125: Усього | C125: 6983241.596 | D125: 3000000 | E125: 2148366.596 | F125: 0 | G125: 0 | H125: 0 | I125: 0 | J125: 2000 | K125: 0 | L125: 0 | M125: 2097000 | N125: 0 | O125: 0 | P125: 1500 | Q125: 0 | R125: 156250 | S125: 0 | T125: 0 | U125: =XIRR(C40:C124,B40:B124) -> 0.3946439445 | V125: 4405116.596
B127: Загальні витрати за кредитом ( проценти за користування кредитом, комісії та інші обовязкові платежі за супровідні послуги кредитодавця, кредитного посередника (за наявності) та третіх осіб, повязані з отриманням, обслуговуванням та поверненням кредиту), грн з них: | J127: =V125 -> 4405116.596
B128: - Платежі за супутні послуги кредитодавця, повязані з отриманням, обслуговуванням та поверненням кредиту), грн | J128: =E125+F125+G125+I125+J125 -> 2150366.596
B129: - Платежі за супутні послуги третіх осіб, повязані з отриманням, обслуговуванням та поверненням кредиту), грн | J129: =K125+L125+M125+N125+O125+P125+R125+T125 -> 2254750
B130: Орієнтовна загальна вартість кредиту для споживача за весь строк користування кредитом ( у т.ч. тіло кредиту, відсотки, комісії та інші платежі), грн. | J130: =J127+D9 -> 7405116.596
B131: Орієнтовна реальна річна процентна ставка, % річних | J131: =U125 -> 0.3946439445
B132: Застереження: Розрахунок загальної вартості Кредиту і реальної процентної ставки носить інформативний характер для Позичальника і визначено станом на дату укладання Кредитного договору. При здійсненні розрахунку загальної вартості Кредиту і реальної процентної ставки Кредитор враховував вартість супутніх послуг третіх осіб, послуги кредитного посередник ( за наявності). В розрахунок загальної вартості Кредиту і реальної процентної ставки не включались умовні платежі Позичальника по Договору (пені, штрафи, які встановлюються згідно з Договором).
B133: Наведені обчислення реальної річної процентної ставки та орієнтовної загальної вартості кредиту для споживача є репрезентативними та базуються на обраних споживачем умовах кредитування, викладених вище, і на припущенні, що договір про споживчий кредит залишатиметься дійсним протягом погодженого строку, а кредитодавець і споживач виконають свої обов’язки на умовах та у строки, визначені в договорі.Реальна річна процентна ставка обчислена на основі припущення, що процентна ставка та інші платежі за послуги кредитодавця залишатимуться незмінними та застосовуватимуться протягом строку дії договору про споживчий кредит. Застереження: використання інших способів надання кредиту та/або зміна інших вищезазначених умов кредитування можуть мати наслідком застосування іншої реальної річної процентної ставки та орієнтовної загальної вартості кредиту для споживача. Орієнтовна реальна річна процентна ставка обчислена з використанням фінансової функції ЧИСТВНДОХ програмного продукту Microsoft Excel.
B134: Позичальник не сплачує Кредитору комісійних винагород за розрахунково-касове обслуговування, що пов‘язані з погашенням Кредиту та процентів за ним Позичальником у готівковій чи безготівковій формі через установи Кредитора. У випадку погашення Позичальником Кредиту та процентів за ним не через установи Кредитора Позичальник буде сплачувати послуги інших банків згідно з тарифами, які діятимуть в таких банках на момент здійснення розрахунково-касового обслуговування Позичальника.

Sheet Номінальна %ставка (hidden)
B1: Строк кредиту, міс.
A2: Авансовий внесок | B2: 12 | C2: 24 | D2: 36 | E2: 48 | F2: 60 | G2: 72 | H2: 84
A3: 0.2 | B3: 0.0999 | C3: 0.1399 | D3: 0.1549 | E3: 0.1599 | F3: 0.1625 | G3: 0.1725 | H3: 0.1699
A4: 0.3 | B4: 0.0899 | C4: 0.1399 | D4: 0.1549 | E4: 0.1599 | F4: 0.1625 | G4: 0.1725 | H4: 0.1699
A5: 0.4 | B5: 0.0799 | C5: 0.1199 | D5: 0.1299 | E5: 0.1499 | F5: 0.1599 | G5: 0.1599 | H5: 0.1599
A6: 0.5 | B6: 0.0549 | C6: 0.0999 | D6: 0.1149 | E6: 0.1249 | F6: 0.1339 | G6: 0.1349 | H6: 0.1399
A7: 0.6 | B7: 0.0299 | C7: 0.0799 | D7: 0.0959 | E7: 0.1099 | F7: 0.1199 | G7: 0.1249 | H7: 0.1299
A8: 0.7 | B8: 0.0001 | C8: 0.0399 | D8: 0.0599 | E8: 0.0799 | F8: 0.0899 | G8: 0.0999 | H8: 0.1099
A10: 12 міс. | B10: 0.0999 | C10: 0.0899 | D10: 0.0799 | E10: 0.0549 | F10: 0.0299 | G10: 0.0001
A11: 24 міс. | B11: 0.1399 | C11: 0.1399 | D11: 0.1199 | E11: 0.0999 | F11: 0.0799 | G11: 0.0399
A12: 36 міс. | B12: 0.1549 | C12: 0.1549 | D12: 0.1299 | E12: 0.1149 | F12: 0.0959 | G12: 0.0599
A13: 48 міс. | B13: 0.1599 | C13: 0.1599 | D13: 0.1499 | E13: 0.1249 | F13: 0.1099 | G13: 0.0799
A14: 60 міс. | B14: 0.1625 | C14: 0.1625 | D14: 0.1599 | E14: 0.1339 | F14: 0.1199 | G14: 0.0899
A15: 72 міс. | B15: 0.1725 | C15: 0.1725 | D15: 0.1599 | E15: 0.1349 | F15: 0.1249 | G15: 0.0999
A16: 84 міс. | B16: 0.1699 | C16: 0.1699 | D16: 0.1599 | E16: 0.1399 | F16: 0.1299 | G16: 0.1099
A17: Строк кредиту | B17: Авансовий внесок (від вартості суми авто)
B18: від 20% | C18: від 30% | D18: від 40% | E18: від 50% | F18: від 60%
B19: Річна процентна ставка,%
A20: 12 міс. | D20: 0.0199 | E20: 0.0001 | F20: 0.0001
A21: 24 міс. | D21: 0.0799 | E21: 0.0499 | F21: 0.0299
A22: 36 міс. | D22: 0.1099 | E22: 0.0899 | F22: 0.0599
A23: 48 міс. | D23: 0.1199 | E23: 0.0999 | F23: 0.0799
A24: 60 міс. | D24: 0.1299 | E24: 0.1099 | F24: 0.0899

Sheet Лист1 (hidden)
